[Event "2. Itzehoer Schach Open"]
[Site "Itzehoe, Germany"]
[Date "2023.04.30"]
[Round "3.8"]
[White "Kitschke, Heiko"]
[Black "Moysich, Dirk"]
[Result "0-1"]
[TimeControl "90 min / 40 Züge + 30 min + 30 Sek pro Zug"]
[WhiteElo "2027"]
[BlackElo "1860"]

1. e4 {[%clk 01:30:57]} {[%emt 00:00:03]} d6 {[%clk 01:30:54]} {[%emt
00:00:06]} 2. d4 {[%clk 01:31:14]} {[%emt 00:00:13]} Nf6 {[%clk 01:31:17]}
{[%emt 00:00:07]} 3. Nc3 {[%clk 01:31:33]} {[%emt 00:00:11]} e5 {[%clk
01:31:35]} {[%emt 00:00:12]} 4. Nf3 {[%clk 01:31:07]} {[%emt 00:00:56]} exd4
{[%clk 01:31:58]} {[%emt 00:00:07]} 5. Nxd4 {[%clk 01:29:50]} {[%emt 00:01:48]}
Be7 {[%clk 01:31:46]} {[%emt 00:00:42]} 6. Be3 {[%clk 01:28:00]} {[%emt
00:02:18]} O-O {[%clk 01:31:26]} {[%emt 00:00:51]} 7. Be2 {[%clk 01:20:46]}
{[%emt 00:07:44]} Re8 {[%clk 01:28:26]} {[%emt 00:03:31]} 8. g4 {[%clk
01:15:14]} {[%emt 00:06:02]} d5 {[%clk 01:20:56]} {[%emt 00:08:00]} 9. e5
{[%clk 01:10:36]} {[%emt 00:05:08]} Ne4 {[%clk 01:20:32]} {[%emt 00:00:54]} 10.
Nxe4 {[%clk 01:04:25]} {[%emt 00:06:40]} dxe4 {[%clk 01:19:53]} {[%emt
00:01:10]} 11. Qd2 {[%clk 01:00:47]} {[%emt 00:04:07]} a6 {[%clk 00:44:47]}
{[%emt 00:35:38]} 12. Qc3 {[%clk 00:42:18]} {[%emt 00:18:58]} c5 {[%clk
00:36:08]} {[%emt 00:09:09]} 13. Nb3 {[%clk 00:36:34]} {[%emt 00:06:13]} Nc6
{[%clk 00:30:50]} {[%emt 00:05:50]} 14. Bxc5 {[%clk 00:26:23]} {[%emt
00:10:40]} Bxc5 {[%clk 00:30:03]} {[%emt 00:01:17]} 15. Qxc5 {[%clk 00:22:12]}
{[%emt 00:04:39]} Nxe5 {[%clk 00:26:01]} {[%emt 00:04:34]} 16. h3 {[%clk
00:16:25]} {[%emt 00:06:17]} b6 {[%clk 00:17:56]} {[%emt 00:08:35]} 17. Qd4
{[%clk 00:13:39]} {[%emt 00:03:14]} Nf3+ {[%clk 00:17:54]} {[%emt 00:00:33]} 18.
Bxf3 {[%clk 00:14:04]} {[%emt 00:00:05]} exf3+ {[%clk 00:18:23]} {[%emt
00:00:02]} 19. Kf1 {[%clk 00:12:54]} {[%emt 00:01:39]} Qe7 {[%clk 00:17:44]}
{[%emt 00:01:09]} 20. Kg1 {[%clk 00:12:03]} {[%emt 00:01:19]} Bb7 {[%clk
00:15:12]} {[%emt 00:03:05]} 21. Qf4 {[%clk 00:06:37]} {[%emt 00:05:55]} Rad8
{[%clk 00:14:44]} {[%emt 00:00:58]} 22. Nd4 {[%clk 00:06:29]} {[%emt 00:00:37]}
Qb4 {[%clk 00:13:57]} {[%emt 00:01:19]} 23. Rd1 {[%clk 00:05:21]} {[%emt
00:01:32]} Re4 {[%clk 00:11:04]} {[%emt 00:03:28]} 24. Qc7 {[%clk 00:05:20]}
{[%emt 00:00:31]} Rdxd4 {[%clk 00:06:21]} {[%emt 00:05:13]} 25. Rxd4 {[%clk
00:03:53]} {[%emt 00:01:58]} Qe1+ {[%clk 00:06:34]} {[%emt 00:00:17]} 0-1

[Event "2. Itzehoer Schach Open"]
[Site "Itzehoe, Germany"]
[Date "2023.04.30"]
[Round "3.29"]
[White "Moeller, Patrick"]
[Black "Rick, Niklas Corvin"]
[Result "0-1"]
[TimeControl "90 min / 40 Züge + 30 min + 30 Sek pro Zug"]
[WhiteElo "1343"]
[BlackElo "1672"]

1. c4 {[%clk 01:30:57]} {[%emt 00:00:02]} Nf6 {[%clk 01:26:06]} {[%emt
00:04:47]} 2. g3 {[%clk 01:31:08]} {[%emt 00:00:26]} e6 {[%clk 01:25:17]}
{[%emt 00:01:19]} 3. Bg2 {[%clk 01:30:40]} {[%emt 00:00:58]} d5 {[%clk
01:23:07]} {[%emt 00:02:40]} 4. cxd5 {[%clk 01:28:45]} {[%emt 00:02:25]} exd5
{[%clk 01:21:35]} {[%emt 00:02:01]} 5. d4 {[%clk 01:28:08]} {[%emt 00:01:08]}
c6 {[%clk 01:18:34]} {[%emt 00:03:30]} 6. e3 {[%clk 01:27:23]} {[%emt
00:01:16]} Bf5 {[%clk 01:16:13]} {[%emt 00:02:51]} 7. Nc3 {[%clk 01:26:50]}
{[%emt 00:01:03]} Be7 {[%clk 01:09:56]} {[%emt 00:06:46]} 8. Nge2 {[%clk
01:25:02]} {[%emt 00:02:18]} O-O {[%clk 01:05:14]} {[%emt 00:05:12]} 9. O-O
{[%clk 01:24:36]} {[%emt 00:00:55]} Qc8 {[%clk 01:03:28]} {[%emt 00:02:16]} 10.
Re1 {[%clk 01:22:50]} {[%emt 00:02:16]} Nbd7 {[%clk 00:59:25]} {[%emt
00:04:32]} 11. Nf4 {[%clk 01:18:46]} {[%emt 00:04:34]} Re8 {[%clk 00:56:47]}
{[%emt 00:03:08]} 12. e4 {[%clk 01:14:38]} {[%emt 00:04:38]} dxe4 {[%clk
00:55:20]} {[%emt 00:01:56]} 13. Nxe4 {[%clk 01:14:50]} {[%emt 00:00:18]} Nxe4
{[%clk 00:55:15]} {[%emt 00:00:35]} 14. Bxe4 {[%clk 01:15:05]} {[%emt
00:00:15]} Bxe4 {[%clk 00:54:57]} {[%emt 00:00:48]} 15. Rxe4 {[%clk 01:15:29]}
{[%emt 00:00:07]} Nf6 {[%clk 00:54:34]} {[%emt 00:00:53]} 16. Re2 {[%clk
01:13:33]} {[%emt 00:02:25]} Bd6 {[%clk 00:51:42]} {[%emt 00:03:23]} 17. Nd3
{[%clk 01:01:41]} {[%emt 00:12:23]} Qd7 {[%clk 00:48:15]} {[%emt 00:03:57]} 18.
Bg5 {[%clk 00:52:13]} {[%emt 00:09:57]} Nd5 {[%clk 00:45:57]} {[%emt 00:02:47]}
19. Qd2 {[%clk 00:49:35]} {[%emt 00:03:08]} Rxe2 {[%clk 00:39:23]} {[%emt
00:07:04]} 20. Qxe2 {[%clk 00:49:57]} {[%emt 00:00:08]} Re8 {[%clk 00:39:29]}
{[%emt 00:00:25]} 21. Qd2 {[%clk 00:43:56]} {[%emt 00:06:31]} Qf5 {[%clk
00:35:15]} {[%emt 00:04:42]} 22. Be3 {[%clk 00:32:14]} {[%emt 00:12:14]} h5
{[%clk 00:31:42]} {[%emt 00:04:03]} 23. h4 {[%clk 00:30:18]} {[%emt 00:02:26]}
Qf3 {[%clk 00:29:24]} {[%emt 00:02:48]} 24. Ne1 {[%clk 00:25:20]} {[%emt
00:05:28]} Qg4 {[%clk 00:27:17]} {[%emt 00:02:37]} 25. a3 {[%clk 00:24:05]}
{[%emt 00:01:46]} Nxe3 {[%clk 00:25:43]} {[%emt 00:02:03]} 26. fxe3 {[%clk
00:22:30]} {[%emt 00:02:05]} Qxg3+ {[%clk 00:24:33]} {[%emt 00:01:40]} 27. Kf1
{[%clk 00:19:31]} {[%emt 00:03:28]} Rxe3 {[%clk 00:22:28]} {[%emt 00:02:34]} 28.
Qf2 {[%clk 00:14:11]} {[%emt 00:05:50]} Qh3+ {[%clk 00:20:44]} {[%emt
00:02:14]} 29. Kg1 {[%clk 00:13:53]} {[%emt 00:00:47]} Rg3+ {[%clk 00:19:04]}
{[%emt 00:02:11]} 30. Ng2 {[%clk 00:14:01]} {[%emt 00:00:23]} Rg6 {[%clk
00:19:07]} {[%emt 00:00:27]} 31. Re1 {[%clk 00:11:41]} {[%emt 00:02:50]} Qh2+
{[%clk 00:19:08]} {[%emt 00:00:29]} 32. Kf1 {[%clk 00:12:00]} {[%emt 00:00:11]}
Rf6 {[%clk 00:18:13]} {[%emt 00:01:25]} 33. Qxf6 {[%clk 00:09:11]} {[%emt
00:03:19]} gxf6 {[%clk 00:16:39]} {[%emt 00:02:03]} 34. b4 {[%clk 00:06:24]}
{[%emt 00:03:18]} Bg3 {[%clk 00:15:48]} {[%emt 00:01:21]} 0-1

[Event "2. Itzehoer Schach Open"]
[Site "Itzehoe, Germany"]
[Date "2023.04.30"]
[Round "3.9"]
[White "Carsten, Juergen"]
[Black "Martin, Dennis"]
[Result "0-1"]
[TimeControl "90 min / 40 Züge + 30 min + 30 Sek pro Zug"]
[WhiteElo "1780"]
[BlackElo "2012"]

1. e4 {[%clk 01:30:56]} {[%emt 00:00:03]} c6 {[%clk 01:30:59]} {[%emt
00:00:01]} 2. d4 {[%clk 01:30:03]} {[%emt 00:01:24]} d5 {[%clk 01:31:26]}
{[%emt 00:00:02]} 3. Bd3 {[%clk 01:29:12]} {[%emt 00:01:22]} dxe4 {[%clk
01:31:41]} {[%emt 00:00:14]} 4. Bxe4 {[%clk 01:29:11]} {[%emt 00:00:30]} Nf6
{[%clk 01:32:09]} {[%emt 00:00:02]} 5. Bf3 {[%clk 01:29:20]} {[%emt 00:00:22]}
Bf5 {[%clk 01:32:33]} {[%emt 00:00:05]} 6. Ne2 {[%clk 01:25:16]} {[%emt
00:04:34]} e6 {[%clk 01:32:52]} {[%emt 00:00:12]} 7. Bf4 {[%clk 01:23:07]}
{[%emt 00:02:38]} Qb6 {[%clk 01:32:13]} {[%emt 00:01:09]} 8. Qc1 {[%clk
01:21:02]} {[%emt 00:02:36]} Na6 {[%clk 01:31:54]} {[%emt 00:00:48]} 9. c3
{[%clk 01:19:03]} {[%emt 00:02:29]} Nc7 {[%clk 01:32:09]} {[%emt 00:00:15]} 10.
Nd2 {[%clk 01:18:23]} {[%emt 00:01:10]} Ncd5 {[%clk 01:32:28]} {[%emt
00:00:11]} 11. Nc4 {[%clk 01:18:08]} {[%emt 00:00:46]} Nxf4 {[%clk 01:30:13]}
{[%emt 00:02:45]} 12. Nxb6 {[%clk 01:14:36]} {[%emt 00:04:02]} Nd3+ {[%clk
01:29:23]} {[%emt 00:01:20]} 13. Kd2 {[%clk 01:11:30]} {[%emt 00:03:35]} Nxc1
{[%clk 01:29:50]} {[%emt 00:00:03]} 14. Nxa8 {[%clk 01:11:10]} {[%emt
00:00:51]} Nxe2 {[%clk 01:30:16]} {[%emt 00:00:03]} 15. Nc7+ {[%clk 01:04:22]}
{[%emt 00:07:18]} Kd7 {[%clk 01:30:44]} {[%emt 00:00:02]} 16. Nxe6 {[%clk
01:04:26]} {[%emt 00:00:27]} Bxe6 {[%clk 01:31:10]} {[%emt 00:00:03]} 17. Bxe2
{[%clk 01:04:15]} {[%emt 00:00:41]} Bd6 {[%clk 01:31:22]} {[%emt 00:00:18]} 18.
g3 {[%clk 01:00:30]} {[%emt 00:04:16]} Re8 {[%clk 01:30:10]} {[%emt 00:01:41]}
19. f3 {[%clk 00:59:23]} {[%emt 00:01:37]} h5 {[%clk 01:26:56]} {[%emt
00:03:43]} 20. b3 {[%clk 00:55:03]} {[%emt 00:04:51]} h4 {[%clk 01:23:01]}
{[%emt 00:04:24]} 21. Rhg1 {[%clk 00:53:51]} {[%emt 00:01:43]} g6 {[%clk
01:22:30]} {[%emt 00:01:01]} 22. Raf1 {[%clk 00:45:00]} {[%emt 00:09:19]} a5
{[%clk 01:19:55]} {[%emt 00:03:07]} 23. Bd1 {[%clk 00:36:05]} {[%emt 00:09:25]}
Rh8 {[%clk 01:17:14]} {[%emt 00:03:11]} 24. Rf2 {[%clk 00:35:31]} {[%emt
00:01:04]} g5 {[%clk 01:16:13]} {[%emt 00:01:31]} 25. Bc2 {[%clk 00:31:15]}
{[%emt 00:04:46]} hxg3 {[%clk 01:13:46]} {[%emt 00:02:57]} 26. hxg3 {[%clk
00:31:13]} {[%emt 00:00:33]} Rh3 {[%clk 01:14:10]} {[%emt 00:00:06]} 27. f4
{[%clk 00:27:28]} {[%emt 00:04:15]} Ng4 {[%clk 01:13:09]} {[%emt 00:01:30]} 28.
Rfg2 {[%clk 00:20:07]} {[%emt 00:07:51]} gxf4 {[%clk 01:12:00]} {[%emt
00:01:39]} 29. gxf4 {[%clk 00:18:49]} {[%emt 00:01:48]} Bxf4+ {[%clk 01:12:27]}
{[%emt 00:00:03]} 30. Ke1 {[%clk 00:18:31]} {[%emt 00:00:48]} Nh2 {[%clk
01:08:00]} {[%emt 00:04:57]} 31. Kd1 {[%clk 00:16:12]} {[%emt 00:02:50]} Rxc3
{[%clk 01:06:58]} {[%emt 00:01:31]} 32. Rg7 {[%clk 00:13:07]} {[%emt 00:03:35]}
Ke7 {[%clk 00:58:42]} {[%emt 00:08:44]} 33. R7g2 {[%clk 00:11:39]} {[%emt
00:02:00]} Kd6 {[%clk 00:55:55]} {[%emt 00:03:17]} 34. Rg8 {[%clk 00:09:22]}
{[%emt 00:02:47]} Bd5 {[%clk 00:52:41]} {[%emt 00:03:43]} 35. Rd8+ {[%clk
00:04:50]} {[%emt 00:05:03]} Ke7 {[%clk 00:52:48]} {[%emt 00:00:22]} 36. Rxd5
{[%clk 00:04:53]} {[%emt 00:00:28]} cxd5 {[%clk 00:53:16]} {[%emt 00:00:02]} 37.
Re1+ {[%clk 00:03:59]} {[%emt 00:01:25]} Re3 {[%clk 00:53:28]} {[%emt
00:00:17]} 38. Rh1 {[%clk 00:03:15]} {[%emt 00:01:14]} Nf3 {[%clk 00:53:28]}
{[%emt 00:00:29]} 39. Rf1 {[%clk 00:03:28]} {[%emt 00:00:17]} Bg3 {[%clk
00:53:31]} {[%emt 00:00:28]} 40. Bf5 {[%clk 00:01:34]} {[%emt 00:02:24]} Re1+
{[%clk 00:52:31]} {[%emt 00:01:29]} 41. Rxe1+ {[%clk 00:01:39]} {[%emt
00:00:26]} Bxe1 {[%clk 00:53:00]} {[%emt 00:00:01]} 42. Bg4 {[%clk 00:01:24]}
{[%emt 00:00:46]} Nh2 {[%clk 00:53:07]} {[%emt 00:00:22]} 43. Bc8 {[%clk
00:00:48]} {[%emt 00:01:06]} Bc3 {[%clk 00:47:42]} {[%emt 00:05:55]} 44. Bxb7
{[%clk 00:28:05]} {[%emt 00:03:13]} Kd6 {[%clk 01:18:10]} {[%emt 00:00:02]} 45.
Ke2 {[%clk 00:27:17]} {[%emt 00:01:18]} Bxd4 {[%clk 01:18:24]} {[%emt
00:00:15]} 46. Bc8 {[%clk 00:27:03]} {[%emt 00:00:45]} Bc5 {[%clk 01:18:40]}
{[%emt 00:00:13]} 47. a3 {[%clk 00:26:39]} {[%emt 00:00:55]} Ke5 {[%clk
01:18:37]} {[%emt 00:00:33]} 48. b4 {[%clk 00:21:14]} {[%emt 00:05:56]} axb4
{[%clk 01:16:11]} {[%emt 00:02:56]} 49. axb4 {[%clk 00:21:02]} {[%emt
00:00:41]} Bxb4 {[%clk 01:16:39]} {[%emt 00:00:02]} 50. Kf2 {[%clk 00:20:40]}
{[%emt 00:00:52]} f5 {[%clk 01:17:06]} {[%emt 00:00:03]} 51. Kg2 {[%clk
00:20:06]} {[%emt 00:01:05]} Ng4 {[%clk 01:17:30]} {[%emt 00:00:05]} 52. Ba6
{[%clk 00:20:30]} {[%emt 00:00:06]} Ke4 {[%clk 01:17:31]} {[%emt 00:00:29]} 53.
Kf1 {[%clk 00:20:10]} {[%emt 00:00:50]} Ke3 {[%clk 01:17:29]} {[%emt 00:00:29]}
54. Bc8 {[%clk 00:19:51]} {[%emt 00:00:51]} Nh6 {[%clk 01:17:45]} {[%emt
00:00:15]} 55. Ba6 {[%clk 00:19:40]} {[%emt 00:00:41]} d4 {[%clk 01:18:04]}
{[%emt 00:00:11]} 56. Be2 {[%clk 00:20:00]} {[%emt 00:00:10]} d3 {[%clk
01:18:26]} {[%emt 00:00:08]} 57. Bd1 {[%clk 00:20:20]} {[%emt 00:00:09]} Nf7
{[%clk 01:18:33]} {[%emt 00:00:23]} 58. Bb3 {[%clk 00:19:16]} {[%emt 00:01:36]}
Nd6 {[%clk 01:18:50]} {[%emt 00:00:11]} 59. Bd1 {[%clk 00:18:52]} {[%emt
00:00:54]} Ne4 {[%clk 01:19:00]} {[%emt 00:00:19]} 60. Ba4 {[%clk 00:18:59]}
{[%emt 00:00:26]} Nc5 {[%clk 01:18:43]} {[%emt 00:00:46]} 0-1

[Event "2. Itzehoer Schach Open"]
[Site "Itzehoe, Germany"]
[Date "2023.04.30"]
[Round "3.23"]
[White "Frahm, Ben Jonas"]
[Black "Ackermann, Hans-Christian"]
[Result "1-0"]
[TimeControl "90 min / 40 Züge + 30 min + 30 Sek pro Zug"]
[WhiteElo "1406"]
[BlackElo "1722"]

1. e4 {[%clk 01:30:55]} {[%emt 00:00:05]} e5 {[%clk 01:30:26]} {[%emt
00:00:35]} 2. Nf3 {[%clk 01:31:19]} {[%emt 00:00:05]} Nc6 {[%clk 01:30:42]}
{[%emt 00:00:14]} 3. Bc4 {[%clk 01:31:43]} {[%emt 00:00:06]} Be7 {[%clk
01:29:56]} {[%emt 00:01:17]} 4. d4 {[%clk 01:32:02]} {[%emt 00:00:11]} exd4
{[%clk 01:30:14]} {[%emt 00:00:12]} 5. Nxd4 {[%clk 01:32:22]} {[%emt 00:00:10]}
Ne5 {[%clk 01:29:24]} {[%emt 00:01:20]} 6. Bb3 {[%clk 01:29:41]} {[%emt
00:03:11]} d6 {[%clk 01:29:09]} {[%emt 00:00:44]} 7. h3 {[%clk 01:28:05]}
{[%emt 00:02:06]} Nf6 {[%clk 01:28:40]} {[%emt 00:00:59]} 8. Nc3 {[%clk
01:27:24]} {[%emt 00:01:11]} c6 {[%clk 01:28:03]} {[%emt 00:01:08]} 9. Be3
{[%clk 01:26:27]} {[%emt 00:01:27]} a6 {[%clk 01:25:33]} {[%emt 00:02:59]} 10.
f4 {[%clk 01:25:43]} {[%emt 00:01:15]} Ng6 {[%clk 01:23:47]} {[%emt 00:02:15]}
11. Qe2 {[%clk 01:24:53]} {[%emt 00:01:21]} Bd7 {[%clk 01:21:14]} {[%emt
00:03:02]} 12. g4 {[%clk 01:23:47]} {[%emt 00:01:36]} O-O {[%clk 01:19:33]}
{[%emt 00:02:11]} 13. g5 {[%clk 01:23:48]} {[%emt 00:00:30]} Ne8 {[%clk
01:18:36]} {[%emt 00:01:27]} 14. h4 {[%clk 01:23:28]} {[%emt 00:00:50]} Qc8
{[%clk 01:16:31]} {[%emt 00:02:34]} 15. h5 {[%clk 01:22:32]} {[%emt 00:01:27]}
Bg4 {[%clk 01:12:01]} {[%emt 00:04:59]} 16. Qg2 {[%clk 01:20:58]} {[%emt
00:02:04]} Nh8 {[%clk 01:10:40]} {[%emt 00:01:51]} 17. f5 {[%clk 01:20:46]}
{[%emt 00:00:42]} c5 {[%clk 01:10:40]} {[%emt 00:00:30]} 18. Ne6 {[%clk
01:17:54]} {[%emt 00:03:23]} c4 {[%clk 01:09:04]} {[%emt 00:02:06]} 19. Bxc4
{[%clk 01:15:44]} {[%emt 00:02:40]} Qxc4 {[%clk 01:09:20]} {[%emt 00:00:13]} 20.
Nxf8 {[%clk 01:15:57]} {[%emt 00:00:17]} Kxf8 {[%clk 01:09:18]} {[%emt
00:00:32]} 21. Qxg4 {[%clk 01:16:06]} {[%emt 00:00:21]} Nc7 {[%clk 01:08:29]}
{[%emt 00:01:20]} 22. O-O-O {[%clk 01:15:20]} {[%emt 00:01:16]} Nb5 {[%clk
01:06:21]} {[%emt 00:02:38]} 23. Rd3 {[%clk 01:12:05]} {[%emt 00:03:45]} Nxc3
{[%clk 01:05:26]} {[%emt 00:01:26]} 24. Rxc3 {[%clk 01:11:49]} {[%emt
00:00:45]} Qxa2 {[%clk 01:05:39]} {[%emt 00:00:17]} 25. Ra3 {[%clk 01:11:04]}
{[%emt 00:01:15]} Qc4 {[%clk 01:05:47]} {[%emt 00:00:21]} 26. Rd1 {[%clk
01:07:16]} {[%emt 00:04:18]} d5 {[%clk 01:04:43]} {[%emt 00:01:35]} 27. Rc3
{[%clk 01:07:26]} {[%emt 00:00:20]} Qa4 {[%clk 01:04:41]} {[%emt 00:00:31]} 28.
Rd4 {[%clk 01:06:40]} {[%emt 00:01:16]} Qa1+ {[%clk 01:04:51]} {[%emt
00:00:20]} 29. Kd2 {[%clk 01:06:48]} {[%emt 00:00:23]} Qxb2 {[%clk 01:05:03]}
{[%emt 00:00:16]} 30. Rb3 {[%clk 01:06:50]} {[%emt 00:00:29]} Qa2 {[%clk
01:03:39]} {[%emt 00:01:54]} 31. Rxd5 {[%clk 01:06:26]} {[%emt 00:00:55]} Rc8
{[%clk 01:03:33]} {[%emt 00:00:35]} 32. Qd1 {[%clk 01:05:56]} {[%emt 00:01:01]}
b5 {[%clk 01:01:48]} {[%emt 00:02:14]} 33. Bc5 {[%clk 01:05:18]} {[%emt
00:01:08]} Bxc5 {[%clk 01:00:29]} {[%emt 00:01:50]} 34. Rbd3 {[%clk 01:04:37]}
{[%emt 00:01:11]} Bb4+ {[%clk 00:58:45]} {[%emt 00:02:14]} 35. Ke3 {[%clk
01:04:28]} {[%emt 00:00:39]} Re8 {[%clk 00:54:03]} {[%emt 00:05:11]} 36. Rd8
{[%clk 01:01:20]} {[%emt 00:03:39]} Qa5 {[%clk 00:53:14]} {[%emt 00:01:18]} 37.
R3d5 {[%clk 00:57:22]} {[%emt 00:04:28]} Qc7 {[%clk 00:52:28]} {[%emt
00:01:16]} 38. R5d7 {[%clk 00:51:00]} {[%emt 00:06:53]} Qg3+ {[%clk 00:51:52]}
{[%emt 00:01:06]} 39. Ke2 {[%clk 00:50:08]} {[%emt 00:01:22]} Qg4+ {[%clk
00:51:51]} {[%emt 00:00:30]} 40. Kf1 {[%clk 00:47:49]} {[%emt 00:02:48]} Qxg5
{[%clk 00:51:36]} {[%emt 00:00:46]} 41. Rxe8+ {[%clk 00:46:57]} {[%emt
00:01:22]} Kxe8 {[%clk 00:51:46]} {[%emt 00:00:21]} 42. Rd3 {[%clk 00:46:02]}
{[%emt 00:01:24]} Qe7 {[%clk 00:49:38]} {[%emt 00:02:37]} 43. Qg4 {[%clk
00:45:00]} {[%emt 00:01:33]} f6 {[%clk 00:49:04]} {[%emt 00:01:05]} 44. h6
{[%clk 00:44:37]} {[%emt 00:00:53]} g6 {[%clk 00:45:46]} {[%emt 00:03:47]} 45.
fxg6 {[%emt 00:01:12]} Nxg6 {[%clk 00:45:07]} {[%emt 00:00:15]} 46. Qc8+ {[%clk
00:45:10]} {[%emt 00:00:10]} Kf7 {[%clk 00:43:11]} {[%emt 00:02:25]} 47. Rd7
{[%clk 00:45:28]} {[%emt 00:00:12]} Ne5 {[%clk 00:41:56]} {[%emt 00:01:45]} 48.
Rxe7+ {[%clk 00:45:45]} {[%emt 00:00:13]} Bxe7 {[%clk 00:41:58]} {[%emt
00:00:29]} 49. Qh8 {[%clk 00:44:54]} {[%emt 00:01:21]} Ke6 {[%clk 00:40:35]}
{[%emt 00:01:52]} 50. Qxh7 {[%clk 00:45:07]} {[%emt 00:00:17]} 1-0